bitfinex-derivatives/quotes_BTCF0:USTF0_20251023
["timestamp","ask_amount","ask_price","bid_price","bid_amount"]
[1761208464995,1.07934488,109820.0,109810.0,0.001]
[1761208468389,0.96472138,109820.0,109810.0,0.001]
[1761208470492,0.96472138,109820.0,109810.0,0.02281]
[1761208470694,0.96472138,109820.0,109810.0,0.04559]
[1761208471194,1.03023592,109820.0,109810.0,0.04559]
[1761208473798,1.03023592,109820.0,109810.0,0.001]
[1761208474598,1.03023592,109820.0,109810.0,0.02281]
[1761208474792,1.03023592,109820.0,109810.0,0.04559]
[1761208474989,0.59019592,109820.0,109810.0,0.04559]
[1761208476099,0.59019592,109820.0,109810.0,0.1366367]
[1761208477202,0.52468138,109820.0,109810.0,0.1366367]
[1761208477394,0.59019592,109820.0,109810.0,0.1366367]
[1761208477594,0.55743504,109820.0,109810.0,0.1366367]
[1761208477993,0.55743504,109820.0,109810.0,0.1138567]
[1761208478198,0.55743504,109820.0,109810.0,0.0920467]
[1761208478399,0.88548138,109820.0,109810.0,0.02281]
[1761208478600,0.88548138,109820.0,109810.0,0.04559]
[1761208479002,0.88548138,109820.0,109810.0,0.001]
[1761208479297,0.93461254,109820.0,109810.0,0.001]
[1761208482703,1.08256116,109820.0,109810.0,0.001]
[1761208484302,1.08256116,109820.0,109810.0,0.02281]
[1761208484505,1.08256116,109820.0,109810.0,0.001]
[1761208484804,0.72176116,109820.0,109810.0,0.04559]
[1761208485104,0.73814454,109820.0,109810.0,0.04559]
[1761208490118,0.44234454,109820.0,109810.0,0.40639]
[1761208490313,0.12158454,109820.0,109810.0,0.55429]
[1761208490619,0.05607,109820.0,109810.0,0.81429]
[1761208492021,0.10522025,109820.0,109810.0,0.81429]
[1761208492820,0.10522025,109820.0,109810.0,0.83429]
[1761208493422,0.13797318,109820.0,109810.0,0.83429]
[1761208493622,0.13797318,109820.0,109810.0,0.60429]
[1761208494027,0.13797318,109820.0,109810.0,0.85429]
[1761208494525,0.08190318,109820.0,109810.0,1.40872]
[1761208494822,0.05731261,109820.0,109810.0,1.11292]
[1761208495232,0.02455968,109820.0,109810.0,1.40872]
[1761208496526,0.02455968,109820.0,109810.0,1.11292]
[1761208496724,0.06953968,109820.0,109810.0,1.14292]
[1761208497031,0.10229261,109820.0,109810.0,1.29082]
[1761208497621,0.07937261,109820.0,109810.0,1.29082]
[1761208497822,0.10229261,109820.0,109810.0,1.29082]
[1761208498233,0.02455968,109820.0,109810.0,1.29082]
[1761208499031,0.02455968,109820.0,109810.0,1.43872]
[1761208499228,0.02455968,109820.0,109810.0,1.29082]
[1761208499528,0.04661968,109820.0,109810.0,1.29082]
[1761208499729,0.06953968,109820.0,109810.0,1.29082]
[1761208500533,0.04661968,109820.0,109810.0,1.29082]
[1761208501326,0.07121025,109820.0,109810.0,1.29082]
[1761208501630,0.25504025,109820.0,109810.0,0.68639]
[1761208501824,0.10714025,109820.0,109810.0,0.87497]
[1761208502025,0.10714025,109820.0,109810.0,1.17497]
[1761208502327,0.10714025,109820.0,109810.0,1.02707]
[1761208502519,0.10714025,109820.0,109810.0,1.17497]
[1761208503734,0.25504025,109820.0,109810.0,0.92497]
[1761208504325,0.2549529,109820.0,109810.0,0.40639]
[1761208504628,0.20589,109820.0,109810.0,0.55429]
[1761208505132,0.20589,109820.0,109810.0,0.83429]
[1761208505133,0.05799,109820.0,109810.0,0.83429]
[1761208506137,0.10705456,109820.0,109810.0,0.83429]
[1761208506832,0.10705456,109820.0,109810.0,1.15497]
[1761208507435,0.12350454,109820.0,109810.0,1.15497]
[1761208508134,0.12350454,109820.0,109810.0,0.83429]
[1761208508634,0.05799,109820.0,109810.0,0.83429]
[1761208509235,0.05799,109820.0,109810.0,0.55429]
[1761208509735,0.05799,109820.0,109810.0,0.85429]
[1761208511134,0.0907046,109820.0,109810.0,0.85429]
[1761208511332,0.11524055,109820.0,109810.0,0.85429]
[1761208511638,0.0907046,109820.0,109810.0,0.85429]
[1761208511936,0.11524133,109820.0,109810.0,0.85429]
[1761208512138,0.0907046,109820.0,109810.0,0.85429]
[1761208512337,0.0907046,109820.0,109810.0,0.55429]
[1761208512830,0.0907046,109820.0,109810.0,0.60429]
[1761208513541,0.0907046,109820.0,109810.0,0.87429]
[1761208515442,0.1397765,109820.0,109810.0,0.87429]
[1761208517842,0.1397765,109820.0,109810.0,0.40639]
[1761208518044,0.1397765,109820.0,109810.0,0.60429]
[1761208518945,0.1397765,109820.0,109810.0,0.55429]
[1761208519141,0.2876765,109820.0,109810.0,0.55429]
[1761208519346,0.2549619,109820.0,109810.0,0.55429]
[1761208520042,0.2549619,109820.0,109810.0,0.40639]
[1761208520240,0.2549619,109820.0,109810.0,0.55429]
[1761208520642,0.8028619,109820.0,109810.0,0.40639]
[1761208520946,0.60589,109820.0,109810.0,0.04481]
[1761208521140,0.67140454,109820.0,109810.0,0.04481]
[1761208522744,0.52350454,109820.0,109810.0,0.04481]
[1761208523050,0.67140454,109820.0,109810.0,0.04481]
[1761208524150,0.52350454,109820.0,109810.0,0.04481]
[1761208524449,0.67140454,109820.0,109810.0,0.04481]
[1761208525250,0.81930454,109820.0,109810.0,0.001]
[1761208525651,0.81930454,109820.0,109810.0,0.02267]
[1761208525947,0.81930454,109820.0,109810.0,0.04468]
[1761208529750,0.75379,109820.0,109810.0,0.04468]
[1761208530247,0.75379,109820.0,109810.0,0.001]
[1761208530443,1.31161739,109820.0,109810.0,0.001]
[1761208530638,1.18010454,109820.0,109810.0,0.001]
[1761208530842,1.34800454,109820.0,109810.0,0.001]
[1761208533749,1.28249,109820.0,109810.0,0.001]
[1761208533953,1.20007653,109820.0,109810.0,0.001]
[1761208534151,0.05739,109800.0,109790.0,0.04379429]
[1761208534351,0.41080939,109800.0,109790.0,0.04379429]
[1761208534551,0.55870939,109800.0,109790.0,0.04379429]
[1761208534843,0.70660939,109800.0,109790.0,0.04379429]
[1761208535150,0.70660939,109800.0,109790.0,0.02178429]
[1761208535356,0.70660939,109800.0,109790.0,0.00011429]
[1761208535858,0.70760939,109800.0,109790.0,0.00011429]
[1761208536058,1.11751848,109800.0,109790.0,0.00011429]
[1761208536357,1.48477909,109800.0,109790.0,0.00011429]
[1761208536558,0.05739,109790.0,109780.0,0.00455436]
[1761208536759,0.77126985,109790.0,109780.0,0.00455436]
[1761208536956,1.16672134,109790.0,109780.0,0.00455436]
[1761208537558,1.16681073,109790.0,109780.0,0.00455436]
[1761208537960,1.21591982,109790.0,109780.0,0.00555436]
[1761208538461,1.21591982,109790.0,109780.0,0.00455436]
[1761208538760,1.21691982,109790.0,109780.0,0.00455436]
[1761208540465,1.16781073,109790.0,109780.0,0.00455436]
[1761208541165,1.19233386,109790.0,109780.0,0.00455436]
[1761208543771,1.19224447,109790.0,109780.0,0.00455436]
[1761208544766,1.04444039,109790.0,109780.0,0.00455436]
[1761208545368,0.05739,109760.0,109750.0,0.46150684]
[1761208545571,0.05749598,109760.0,109750.0,0.46150684]
[1761208546869,0.05749598,109760.0,109750.0,0.46350684]
[1761208547565,0.2054919,109760.0,109750.0,0.83094717]
[1761208548773,0.23001503,109760.0,109750.0,0.80648]
[1761208550074,0.23001503,109760.0,109750.0,0.04568]
[1761208552081,0.26274637,109760.0,109750.0,0.04568]
[1761208552380,0.40277911,109760.0,109750.0,0.04568]
[1761208552980,0.55077503,109760.0,109750.0,0.40648]
[1761208554382,0.40277911,109760.0,109750.0,0.40648]
[1761208554576,0.55077503,109760.0,109750.0,0.40648]
[1761208559484,0.58350637,109760.0,109750.0,0.40648]
[1761208560582,0.60809233,109760.0,109750.0,0.40648]
[1761208560783,0.55898324,109760.0,109750.0,0.04568]
[1761208561082,0.91978324,109760.0,109750.0,0.02367]
[1761208561287,0.94428048,109760.0,109750.0,0.002]
[1761208562384,0.79628456,109760.0,109750.0,0.002]
[1761208562687,0.94428048,109760.0,109750.0,0.002]
[1761208563282,1.34428048,109760.0,109750.0,0.002]
[1761208563487,0.05799,109750.0,109740.0,0.00455602]
[1761208563688,0.59128546,109750.0,109740.0,0.00455602]
[1761208563983,0.62413109,109750.0,109740.0,0.00455602]
[1761208564382,1.02413109,109750.0,109740.0,0.00455602]
[1761208564780,1.02413109,109750.0,109740.0,0.02651602]
[1761208565387,1.02413109,109750.0,109740.0,0.00455602]
[1761208565582,1.02413109,109750.0,109740.0,0.00555602]
[1761208566887,0.62413109,109750.0,109740.0,0.00555602]
[1761208570784,0.08260383,109750.0,109740.0,0.04963602]
[1761208570987,0.40344383,109750.0,109740.0,0.41043602]
[1761208571289,0.52694021,109750.0,109740.0,0.41043602]
[1761208572288,0.55143975,109750.0,109740.0,0.41043602]
[1761208572488,0.40344383,109750.0,109740.0,0.41043602]
[1761208574687,0.55143975,109750.0,109740.0,0.41043602]
[1761208575295,0.40344383,109750.0,109740.0,0.41043602]
[1761208575597,0.08260383,109750.0,109740.0,0.81043602]
[1761208575794,0.06953383,109750.0,109740.0,1.22596194]
[1761208576096,0.08260383,109750.0,109740.0,1.07043602]
[1761208576298,0.08260383,109750.0,109740.0,0.81043602]
[1761208576691,0.23059975,109750.0,109740.0,0.81043602]
[1761208577098,0.23059975,109750.0,109740.0,0.41043602]
[1761208577298,0.26333109,109750.0,109740.0,0.41043602]
[1761208579293,0.23883155,109750.0,109740.0,0.36635602]
[1761208579495,0.6160093,109750.0,109740.0,0.00555602]
[1761208580396,0.46801338,109750.0,109740.0,0.00555602]
[1761208580591,0.09087589,109750.0,109740.0,0.95843194]
[1761208580799,0.05746357,109750.0,109740.0,1.01596194]
[1761208580990,0.10238357,109750.0,109740.0,1.30596194]
[1761208581194,0.10238357,109750.0,109740.0,1.15796602]
[1761208581396,0.10238357,109750.0,109740.0,1.15043602]
[1761208581397,0.11545357,109750.0,109740.0,1.15043602]
[1761208581799,0.08015357,109750.0,109740.0,1.15796602]
[1761208582003,0.08015357,109750.0,109740.0,0.81796602]
[1761208582199,0.10238357,109750.0,109740.0,1.14796602]
[1761208582700,0.05746357,109750.0,109740.0,1.61676194]
[1761208582904,0.02469197,109750.0,109740.0,1.61676194]
[1761208586007,0.02469197,109750.0,109740.0,1.59676194]
[1761208588508,0.06920197,109750.0,109740.0,1.28676194]
[1761208588709,0.11528357,109750.0,109740.0,1.43876602]
[1761208589006,0.11528357,109750.0,109740.0,1.58676194]
[1761208589305,0.11528357,109750.0,109740.0,1.43876602]
[1761208590806,0.10197357,109750.0,109740.0,1.58676194]
[1761208591003,0.10197357,109750.0,109740.0,1.62676194]
[1761208591205,0.07739589,109750.0,109740.0,1.62676194]
[1761208592709,0.05514589,109750.0,109740.0,1.62676194]
[1761208593912,0.05514589,109750.0,109740.0,1.59676194]
[1761208597015,0.10425498,109750.0,109740.0,1.59676194]
[1761208597913,0.08199498,109750.0,109740.0,1.59676194]
[1761208599116,0.08199498,109750.0,109740.0,1.28676194]
[1761208599314,0.07148338,109750.0,109740.0,1.28676194]
[1761208599512,0.07148338,109750.0,109740.0,1.59676194]
[1761208599714,0.08199725,109750.0,109740.0,1.57676194]
[1761208600015,0.10425725,109750.0,109740.0,1.57676194]
[1761208600215,0.12650725,109750.0,109740.0,1.61676194]
[1761208600719,0.12650725,109750.0,109740.0,1.61576194]
[1761208600917,0.10425725,109750.0,109740.0,1.61676194]
[1761208601418,0.07973229,109750.0,109740.0,1.61676194]
[1761208601914,0.07973229,109750.0,109740.0,1.61576194]
[1761208602123,0.07973229,109750.0,109740.0,1.61676194]
[1761208602919,0.07973229,109750.0,109740.0,1.28676194]
[1761208603221,0.10198229,109750.0,109740.0,1.56676194]
[1761208603415,0.07739816,109750.0,109740.0,1.13876602]
[1761208603618,0.09070816,109750.0,109740.0,1.13123602]
[1761208603826,0.09070816,109750.0,109740.0,1.22234072]
[1761208604527,0.07739816,109750.0,109740.0,1.22987072]
[1761208604828,0.07739816,109750.0,109740.0,1.27987072]
[1761208605027,0.07739816,109750.0,109740.0,1.22987072]
[1761208605028,0.10198602,109750.0,109740.0,1.22987072]
[1761208605626,0.11529602,109750.0,109740.0,1.22234072]
[1761208606724,0.11529602,109750.0,109740.0,1.37035256]
[1761208607432,0.11529602,109750.0,109740.0,1.27924786]
[1761208607924,0.11529602,109750.0,109740.0,0.55844786]
[1761208608129,0.11529602,109750.0,109740.0,0.73119602]
[1761208608130,0.23872,109750.0,109740.0,0.73119602]
[1761208608324,0.26331156,109750.0,109740.0,0.73119602]
[1761208608629,0.23872,109750.0,109740.0,0.41043602]
[1761208609324,0.28782909,109750.0,109740.0,0.41043602]
[1761208609730,0.64862909,109750.0,109740.0,0.04963602]
[1761208609932,0.61585522,109750.0,109740.0,0.04963602]
[1761208611324,0.64865508,109750.0,109740.0,0.04963602]
[1761208614334,0.64865508,109750.0,109740.0,0.00555602]
[1761208614736,0.64865508,109750.0,109740.0,0.02661602]
[1761208614931,0.96941508,109750.0,109740.0,0.02661602]
[1761208616922,0.97837603,109750.0,109740.0,0.02661602]
[1761208618439,0.97837603,109750.0,109740.0,0.04769602]
[1761208618934,0.82140324,109750.0,109740.0,0.04769602]
[1761208619132,0.96941508,109750.0,109740.0,0.02661602]
[1761208619338,0.97845298,109750.0,109740.0,0.02661602]
[1761208621037,1.52646482,109750.0,109740.0,0.00555602]
[1761208621236,1.49366496,109750.0,109740.0,0.00555602]
[1761208621433,1.5100424,109750.0,109740.0,0.00555602]
[1761208622434,1.5100424,109750.0,109710.0,0.41790621]
[1761208622435,0.01345,109720.0,109710.0,0.42748654]
[1761208622637,0.01345,109720.0,109700.0,0.06158452]
[1761208622638,0.88093253,109720.0,109700.0,0.06158452]
[1761208622849,0.20674184,109710.0,109700.0,0.04260452]
[1761208623037,0.2313277,109710.0,109700.0,0.04260452]
[1761208623343,0.20674184,109710.0,109700.0,0.04260452]
[1761208623543,0.21574737,109710.0,109700.0,0.04260452]
[1761208623733,0.21574737,109710.0,109700.0,0.00455768]
[1761208624040,0.21584461,109710.0,109700.0,0.00655768]
[1761208624434,0.21584461,109710.0,109700.0,0.00455768]
[1761208624644,0.76385645,109710.0,109700.0,0.00555768]
[1761208624944,0.64043047,109710.0,109700.0,0.00555768]
[1761208625138,0.61584461,109710.0,109700.0,0.00555768]
[1761208625338,0.46783277,109710.0,109700.0,0.00555768]
[1761208625539,0.61584461,109710.0,109700.0,0.00555768]
[1761208625838,0.76385645,109710.0,109700.0,0.00555768]
[1761208626343,1.12465645,109710.0,109700.0,0.00555768]
[1761208626838,0.72465645,109710.0,109700.0,0.00555768]
[1761208632343,0.72465645,109710.0,109700.0,0.00455768]
[1761208633445,0.05873,109690.0,109680.0,0.03255967]
[1761208633645,0.05873,109680.0,109670.0,0.03255967]
[1761208633843,0.71564472,109680.0,109670.0,0.03255967]
[1761208634243,0.05873,109670.0,109660.0,0.48901407]
[1761208634447,0.20682044,109670.0,109660.0,0.12821407]
[1761208634647,0.20682044,109670.0,109660.0,0.07925901]
[1761208635744,0.21577271,109670.0,109660.0,0.07925901]
[1761208635945,0.21577271,109670.0,109660.0,0.08025901]
[1761208636748,0.20682044,109670.0,109660.0,0.08025901]
[1761208637348,0.19337044,109670.0,109660.0,0.09287901]
[1761208637548,0.20682044,109670.0,109660.0,0.08025901]
[1761208641255,0.20682044,109670.0,109660.0,0.04769934]
[1761208641659,0.20682044,109670.0,109660.0,0.06031934]
[1761208641858,0.0453586,109670.0,109660.0,0.06031934]
[1761208642155,0.20682044,109670.0,109660.0,0.06031934]
[1761208642355,0.20682044,109670.0,109660.0,0.04769934]
[1761208642557,0.0453586,109670.0,109660.0,0.06169934]
[1761208642755,0.20694044,109670.0,109660.0,0.04769934]
[1761208644558,0.0453586,109670.0,109660.0,0.84785422]
[1761208644754,7.86e-05,109670.0,109660.0,1.24121389]
[1761208644952,7.86e-05,109670.0,109660.0,1.58121389]
[1761208645456,7.86e-05,109670.0,109660.0,1.52121389]
[1761208646255,7.86e-05,109670.0,109660.0,1.22519021]
[1761208646456,0.0216486,109670.0,109660.0,1.27519021]
[1761208646657,7.86e-05,109670.0,109660.0,1.57121389]
[1761208647555,7.86e-05,109670.0,109660.0,1.62016895]
[1761208649554,7.86e-05,109670.0,109660.0,1.29016895]
[1761208649754,0.0216486,109670.0,109660.0,1.59016895]
[1761208650769,7.86e-05,109670.0,109660.0,1.59016895]
[1761208651158,7.86e-05,109670.0,109660.0,1.91120895]
[1761208651457,7.86e-05,109670.0,109660.0,1.82969422]
[1761208652268,0.0562186,109670.0,109660.0,1.28261573]
[1761208652574,0.20423044,109670.0,109660.0,0.75958757]
[1761208652751,0.20423044,109670.0,109660.0,1.03058757]
[1761208652752,0.0562186,109670.0,109660.0,1.03058757]
[1761208652953,0.0562186,109670.0,109660.0,1.08058757]
[1761208653370,0.0435786,109670.0,109660.0,1.45859941]
[1761208653559,7.86e-05,109670.0,109660.0,1.85859941]
[1761208653954,0.0216486,109670.0,109660.0,1.85859941]
[1761208654160,0.0216486,109670.0,109660.0,1.80965422]
[1761208654366,0.0435786,109670.0,109660.0,1.85965422]
[1761208655163,7.86e-05,109670.0,109660.0,1.85965422]
[1761208655972,7.86e-05,109670.0,109660.0,1.92492764]
[1761208657372,0.0216486,109670.0,109660.0,1.60890396]
[1761208657667,0.0435786,109670.0,109660.0,1.90492764]
[1761208657967,0.0435786,109670.0,109660.0,1.60890396]
[1761208658163,0.19159044,109670.0,109660.0,1.4469158]
[1761208658362,0.0435786,109670.0,109660.0,1.7269158]
[1761208658670,0.0435786,109670.0,109660.0,1.91492764]
[1761208659464,0.0435786,109670.0,109660.0,1.70164238]
[1761208659666,0.0435786,109670.0,109660.0,1.84965422]
[1761208659871,0.0216486,109670.0,109660.0,1.84965422]
[1761208660084,7.86e-05,109670.0,109660.0,1.84965422]
[1761208661473,0.05744561,109670.0,109660.0,1.84965422]
[1761208661670,0.03285975,109670.0,109660.0,1.84965422]
[1761208662072,0.05743607,109670.0,109660.0,1.84965422]
[1761208663069,0.02465492,109670.0,109660.0,1.84965422]
[1761208665774,0.06815492,109670.0,109660.0,1.55363054]
[1761208666076,0.04622492,109670.0,109660.0,1.55363054]
[1761208666274,0.04622492,109670.0,109660.0,1.84965422]
[1761208666476,0.04622492,109670.0,109660.0,1.55363054]
[1761208666779,0.02465492,109670.0,109660.0,1.84965422]
[1761208668789,0.02465492,109670.0,109660.0,1.7018392]
[1761208669479,0.0216486,109670.0,109660.0,1.6718392]
[1761208670083,7.86e-05,109670.0,109660.0,1.6718392]
[1761208670983,0.0216486,109670.0,109660.0,1.6718392]
[1761208671483,7.86e-05,109670.0,109660.0,1.6718392]
[1761208676484,0.0223786,109670.0,109660.0,1.6718392]
[1761208676686,0.0438886,109670.0,109660.0,1.6718392]
[1761208676886,0.0438886,109670.0,109660.0,1.6728392]
[1761208677688,0.0438886,109670.0,109660.0,1.6738392]
[1761208677883,0.0438886,109670.0,109660.0,1.7238392]
[1761208679079,7.86e-05,109670.0,109660.0,1.7238392]
[1761208680186,7.86e-05,109670.0,109640.0,0.40384851]
[1761208680187,0.1272895,109650.0,109640.0,0.40384851]
[1761208680386,0.14890237,109650.0,109640.0,0.40384851]
[1761208680581,0.14890237,109650.0,109640.0,0.72528851]
[1761208680896,0.15785,109650.0,109640.0,0.73883851]
[1761208681078,0.14890237,109650.0,109640.0,0.72528851]
[1761208681387,0.29711103,109650.0,109640.0,0.72528851]
[1761208681691,0.14890237,109650.0,109640.0,0.72528851]
[1761208682191,0.18168352,109650.0,109640.0,0.72528851]
[1761208683391,0.72989218,109650.0,109640.0,0.72528851]
[1761208683690,1.10708276,109650.0,109640.0,6.851e-05]
[1761208684175,1.25529142,109650.0,109620.0,0.700351]
[1761208684379,0.1350061,109630.0,109620.0,0.743331]
[1761208684580,0.15950669,109630.0,109620.0,0.743331]
[1761208685389,0.15959758,109630.0,109620.0,0.743331]
[1761208685596,0.15959758,109630.0,109620.0,0.793331]
[1761208685890,0.15959758,109630.0,109620.0,0.8845355]
[1761208686188,0.15959758,109630.0,109620.0,0.5140955]
[1761208686189,0.06840148,109630.0,109620.0,0.5140955]
[1761208686388,0.09128709,109630.0,109620.0,1.29390416]
[1761208686688,0.09128709,109630.0,109620.0,1.27390416]
[1761208687083,0.13509709,109630.0,109620.0,1.02490416]
[1761208687279,0.14890709,109630.0,109620.0,0.8766955]
[1761208687479,0.14890709,109630.0,109620.0,0.8767755]
[1761208687876,0.14890709,109630.0,109620.0,1.1467755]
[1761208688086,0.13509709,109630.0,109620.0,0.8867755]
[1761208689589,0.13509709,109630.0,109620.0,1.1167755]
[1761208690085,0.04610148,109630.0,109620.0,1.1367755]
[1761208690291,0.02239089,109630.0,109620.0,1.28498416]
[1761208690680,9.089e-05,109630.0,109620.0,1.28498416]
[1761208694996,0.14890699,109630.0,109620.0,0.367361]
[1761208695196,0.1488245,109620.0,109610.0,0.40278]
[1761208695389,0.17332966,109620.0,109610.0,0.04198]
[1761208695585,0.17340794,109620.0,109610.0,0.04198]
[1761208695791,1.0824166,109620.0,109610.0,0.04198]
[1761208696100,0.57340794,109620.0,109610.0,0.05553]
[1761208696395,0.1488328,109610.0,109600.0,0.72638]
[1761208696598,0.14894557,109610.0,109600.0,0.72638]
[1761208696787,0.14894557,109610.0,109600.0,0.73993]
[1761208697286,0.29715423,109610.0,109600.0,0.40378]
[1761208699788,0.1050394,109590.0,109580.0,0.04754267]
[1761208699987,0.1350394,109590.0,109580.0,0.42189267]
[1761208700194,0.13511302,109590.0,109580.0,0.42189267]
[1761208700601,0.14892302,109590.0,109580.0,0.42189267]
[1761208700792,0.29713168,109590.0,109580.0,0.73122267]
[1761208701401,0.14892302,109590.0,109580.0,0.73222267]
[1761208701597,0.05769362,109590.0,109580.0,0.74577267]
[1761208702099,0.06069362,109590.0,109580.0,0.74477267]
[1761208702400,0.06069362,109590.0,109580.0,0.74481267]
[1761208703097,0.84834034,109590.0,109580.0,0.00456267]
[1761208703296,1.20914034,109590.0,109580.0,0.01801837]
[1761208703497,1.20914034,109590.0,109580.0,0.01801533]
[1761208703799,1.20714034,109590.0,109580.0,0.00456267]
[1761208704103,1.06093168,109590.0,109580.0,0.00456267]
[1761208704600,1.05993168,109590.0,109580.0,0.00456267]
[1761208704799,1.06093168,109590.0,109580.0,0.00456267]
[1761208705198,1.53218672,109590.0,109580.0,0.00456267]
[1761208705400,1.53018672,109590.0,109580.0,0.01801532]
[1761208705699,1.38397806,109590.0,109580.0,0.01801532]
[1761208706101,1.53218672,109590.0,109580.0,0.00456267]
[1761208706693,1.38397806,109590.0,109580.0,0.05041267]
[1761208706892,0.1503561,109570.0,109560.0,7.14e-05]
[1761208707095,0.05911,109550.0,109540.0,0.4198013]
[1761208707297,0.1503727,109550.0,109540.0,0.42342433]
[1761208707497,0.05911,109550.0,109540.0,0.78726433]
[1761208707692,0.1374827,109550.0,109540.0,0.74750433]
[1761208707897,0.1374827,109550.0,109540.0,0.8201813]
[1761208708105,0.13759844,109550.0,109540.0,0.8201813]
[1761208708398,0.15048844,109550.0,109540.0,0.4060513]
[1761208708597,0.2986971,109550.0,109540.0,0.48702433]
[1761208708895,0.6986971,109550.0,109540.0,0.35072433]
[1761208709101,0.6996971,109550.0,109540.0,0.02632433]
[1761208709298,0.6996971,109550.0,109540.0,0.35116433]
[1761208710202,0.6996971,109550.0,109540.0,0.37377433]
[1761208710400,0.6996971,109550.0,109540.0,0.37381433]
[1761208711102,0.6996971,109550.0,109540.0,0.04897433]
[1761208711103,1.0604971,109550.0,109540.0,0.04897433]
[1761208711397,1.0604971,109550.0,109540.0,0.37377433]
[1761208711602,1.0604971,109550.0,109540.0,0.35112433]
[1761208712499,0.91228844,109550.0,109540.0,0.00456433]
[1761208712802,1.0604971,109550.0,109540.0,0.04897433]
[1761208714607,1.06038136,109550.0,109540.0,0.00456433]
[1761208714810,0.66048142,109550.0,109540.0,0.04897433]
[1761208716008,0.66048142,109550.0,109540.0,0.00456433]
[1761208716509,0.66048142,109550.0,109540.0,0.02632433]
[1761208717209,0.13858276,109550.0,109540.0,1.32675299]
[1761208717511,0.09236276,109550.0,109540.0,1.45070106]
[1761208717711,0.00110006,109550.0,109540.0,1.45070106]
[1761208718114,0.464932,109580.0,109570.0,0.04441]
[1761208718115,0.65936066,109580.0,109570.0,0.04441]
[1761208718818,0.65936066,109580.0,109570.0,0.02176]
[1761208719119,0.65944014,109580.0,109570.0,0.02176]
[1761208719412,0.65944014,109580.0,109570.0,0.04441]
[1761208719413,0.66044014,109580.0,109570.0,0.04441]
[1761208720014,0.73179687,109580.0,109570.0,0.04441]
[1761208720516,0.73279687,109580.0,109570.0,0.04441]
[1761208720904,0.05911,109570.0,109560.0,0.02176]
[1761208721109,0.05911,109570.0,109550.0,0.40521]
[1761208721110,0.05911,109560.0,109550.0,0.40521]
[1761208721308,0.0591846,109560.0,109550.0,0.40521]
[1761208721919,0.1504389,109560.0,109550.0,0.40521]
[1761208723926,0.1504389,109560.0,109550.0,0.41886]
[1761208724217,0.1504389,109560.0,109550.0,0.51886]
[1761208724415,0.1504389,109560.0,109550.0,0.41886]
[1761208724616,0.0913289,109560.0,109550.0,1.09833136]
[1761208724917,0.0913289,109560.0,109550.0,1.05833136]
[1761208725110,0.0913289,109560.0,109550.0,1.16833136]
[1761208725308,0.1041527,109550.0,109540.0,0.0372413]
[1761208725511,0.65946538,109550.0,109540.0,0.0372413]
[1761208725811,0.65946538,109550.0,109540.0,0.00456433]
[1761208726019,0.68081972,109550.0,109540.0,0.00456433]
[1761208726512,0.53261106,109550.0,109540.0,0.02632433]
[1761208727108,0.53261106,109550.0,109540.0,0.00456433]
[1761208727514,1.24389019,109550.0,109540.0,0.00456433]
[1761208730816,1.11830948,109550.0,109540.0,0.00456433]
[1761208732316,1.11840019,109550.0,109540.0,0.00456433]
[1761208732523,1.11830948,109550.0,109540.0,0.00456433]
[1761208733428,1.11830948,109550.0,109540.0,0.02632433]
[1761208733721,0.53252704,109550.0,109540.0,0.06183433]
[1761208734024,0.85798106,109550.0,109540.0,0.06183433]
[1761208734424,0.49718106,109550.0,109540.0,0.42263433]
[1761208734819,0.15046672,109550.0,109540.0,0.42263433]
[1761208735231,0.15046672,109550.0,109540.0,0.41003433]
[1761208735426,0.33624916,109550.0,109540.0,0.41003433]
[1761208740644,0.15046672,109550.0,109540.0,0.41003433]
[1761208740843,0.33624916,109550.0,109540.0,0.41003433]
[1761208741337,0.33624916,109550.0,109540.0,0.45904979]
[1761208741934,0.40173569,109550.0,109540.0,0.41003433]
[1761208743244,0.33624916,109550.0,109540.0,0.41003433]
[1761208743645,0.19961627,109550.0,109540.0,0.42263433]
[1761208746350,0.21944932,109550.0,109540.0,1.12968777]
[1761208746645,0.11589815,109550.0,109540.0,1.41725277]
[1761208746847,0.1486212,109550.0,109540.0,1.01725277]
[1761208747040,0.1940712,109550.0,109540.0,1.01725277]
[1761208747442,0.34261864,109550.0,109540.0,0.98725277]
[1761208747645,0.31807721,109550.0,109540.0,0.98725277]
[1761208747840,0.31807721,109550.0,109540.0,0.83870533]
[1761208748041,0.31807721,109550.0,109540.0,0.98725277]
[1761208749137,0.31807721,109550.0,109540.0,0.74743433]
[1761208749336,0.34260879,109550.0,109540.0,0.83870533]
[1761208750250,0.34260879,109550.0,109540.0,0.98725277]
[1761208750750,0.19406135,109550.0,109540.0,0.98725277]
[1761208750950,0.34260879,109550.0,109540.0,0.98725277]
[1761208751453,0.31807721,109550.0,109540.0,0.98725277]
[1761208751843,0.31807721,109550.0,109540.0,0.83870533]
[1761208752043,0.31807721,109550.0,109540.0,0.98725277]
[1761208753746,0.34260755,109550.0,109540.0,0.98725277]
[1761208755455,0.31807721,109550.0,109540.0,0.98725277]
[1761208755655,0.31807721,109550.0,109540.0,0.89598177]
[1761208756149,0.16952977,109550.0,109540.0,1.01725287]
[1761208756343,0.31807721,109550.0,109540.0,0.98725287]
[1761208756548,0.31807721,109550.0,109540.0,0.83870543]
[1761208756749,0.34261236,109550.0,109540.0,1.07725287]
[1761208757644,0.19406492,109550.0,109540.0,1.07725287]
[1761208757851,0.34261236,109550.0,109540.0,1.07725287]
[1761208758359,0.16134187,109550.0,109540.0,1.07725287]
[1761208758552,0.16134187,109550.0,109540.0,0.98725287]
[1761208758858,0.16134187,109550.0,109540.0,1.02725287]
[1761208759155,0.30988931,109550.0,109540.0,0.98725287]
[1761208759358,0.30988931,109550.0,109540.0,1.08725287]
[1761208759851,0.16134187,109550.0,109540.0,1.08725287]
[1761208760256,0.02462917,109550.0,109540.0,1.87580031]
[1761208760449,9.402e-05,109550.0,109540.0,1.82580031]
[1761208760651,9.402e-05,109550.0,109540.0,1.62580031]
[1761208760852,9.402e-05,109550.0,109540.0,1.82580031]
[1761208761559,0.1485125,109560.0,109550.0,0.1479427]
[1761208761759,0.0572582,109560.0,109550.0,0.82729014]
[1761208761956,0.1485042,109570.0,109560.0,0.1479344]
[1761208762163,0.1485042,109570.0,109560.0,0.98152184]
[1761208762465,0.1712333,109570.0,109560.0,1.08152184]
[1761208762762,0.1712333,109570.0,109560.0,1.09079313]
[1761208763063,0.1486133,109570.0,109560.0,1.09079313]
[1761208763755,0.11589025,109570.0,109560.0,1.43934057]
[1761208763962,0.11589025,109570.0,109560.0,1.21934057]
[1761208764153,0.11589025,109570.0,109560.0,1.61934057]
[1761208764859,0.02464425,109570.0,109560.0,1.84934057]
[1761208765458,0.14851214,109580.0,109570.0,0.146876]
[1761208765656,0.14851214,109580.0,109570.0,0.70622344]
[1761208766364,0.14851214,109580.0,109570.0,0.65622344]
[1761208766658,0.11578909,109580.0,109570.0,0.76622344]